[Event "12th Asrian Memorial 2019"]
[Site "Yerevan"]
[Date "2019.06.16"]
[Round "6.5"]
[White "Barseghyan, Armen Ar."]
[Black "Mikaelyan, Arman"]
[Result "0-1"]
[ECO "B23"]
[WhiteElo "2294"]
[BlackElo "2453"]
[Annotator "ChessBase"]
[PlyCount "92"]
[EventDate "2019.06.11"]
[EventType "swiss"]
[EventCountry "ARM"]
[SourceTitle "playchess.com"]
[Source "ChessBase"]
[SourceQuality "1"]
[TimeControl "40/5400+30:1800+30"]

1. e4 {[%emt 0:00:00]} c5 {[%emt 0:01:01]} 2. Nc3 {[%emt 0:00:10]} d6 {[%emt 0:00:26]} 3. f4 {[%emt 0:00:58]} Nc6 {[%emt 0:02:33]} 4. Nf3 {[%emt 0:00:13]} g6 {[%emt 0:00:27]} 5. Bc4 {[%emt 0:00:16]} Bg7 {[%emt 0:00:08]} 6. O-O {[%emt 0:00:13]} e6 {[%emt 0:00:38]} 7. d4 {[%emt 0:00:18]} cxd4 {[%emt 0:00:40]} 8. Nb5 {[%emt 0:00:05]} Nge7 {[%emt 0:00:27]} 9. Bb3 {[%emt 0:00:41]} O-O {[%emt 0:00:18]} 10. Nbxd4 {[%emt 0:00:05]} Na5 {[%emt 0:00:12]} 11. Be3 {[%emt 0:07:44]} b6 {[%emt 0:01:47]} 12. Qe2 {[%emt 0:16:45]} Nxb3 {[%emt 0:01:45]} 13. axb3 {[%emt 0:00:05]} Bb7 {[%emt 0:00:22]} 14. Bf2 {[%emt 0:00:35]} a6 {[%emt 0:00:44]} 15. Bh4 {[%emt 0:13:08]} Qc7 {[%emt 0:04:27]} 16. Rad1 {[%emt 0:06:13]} Rfe8 {[%emt 0:05:58]} 17. Qd3 {[%emt 0:07:33]} e5 {[%emt 0:13:14]} 18. Ne2 {[%emt 0:01:47]} d5 {[%emt 0:18:50]} 19. Nxe5 {[%emt 0:10:11]} dxe4 {[%emt 0:00:33]} 20. Qd7 {[%emt 0:00:20]} Rac8 {[%emt 0:03:09]} 21. Bxe7 {[%emt 0:07:37]} Rxe7 {[%emt 0:00:41]} 22. Qxc7 {[%emt 0:00:08]} Rexc7 {[%emt 0:00:31]} 23. Nc4 {[%emt 0:00:52]} b5 {[%emt 0:07:54]} 24. Nd6 {[%emt 0:00:30]} Rb8 {[%emt 0:00:16]} 25. Nxb7 {[%emt 0:00:11]} Rcxb7 {[%emt 0:06:50]} 26. Ra1 {[%emt 0:15:21]} Rd7 {[%emt 0:03:12]} 27. f5 {[%emt 0:04:06]} Bxb2 {[%emt 0:04:11]} 28. Rxa6 {[%emt 0:03:17]} Rd2 {[%emt 0:00:07]} 29. Re1 {[%emt 0:00:26]} Rxc2 {[%emt 0:01:58]} 30. f6 {[%emt 0:00:50]} Rbc8 {[%emt 0:02:27]} 31. g4 {[%emt 0:00:21]} h6 {[%emt 0:01:18]} 32. h4 {[%emt 0:01:24]} R2c6 {[%emt 0:00:52]} 33. Rxc6 {[%emt 0:00:53]} Rxc6 {[%emt 0:00:04]} 34. Kf2 {[%emt 0:02:09]} Bxf6 {[%emt 0:02:06]} 35. Ke3 {[%emt 0:00:03]} Bxh4 {[%emt 0:00:19]} 36. Rh1 {[%emt 0:01:00]} Bg5+ {[%emt 0:00:04]} 37. Kxe4 {[%emt 0:00:03]} Re6+ {[%emt 0:00:03]} 38. Kf3 {[%emt 0:00:09]} Re3+ {[%emt 0:00:04]} 39. Kf2 {[%emt 0:00:07]} Rxb3 {[%emt 0:00:04]} 40. Ra1 {[%emt 0:00:00]} b4 {[%emt 0:00:00]} 41. Ra8+ {[%emt 0:01:01]} Kg7 {[%emt 0:00:22]} 42. Rb8 {[%emt 0:00:03]} Bh4+ {[%emt 0:01:16]} 43. Kg2 {[%emt 0:00:10]} Re3 {[%emt 0:00:18]} 44. Nd4 {[%emt 0:00:44]} Rg3+ {[%emt 0:00:26]} 45. Kh2 {[%emt 0:00:03]} Rxg4 {[%emt 0:00:16]} 46. Rxb4 {[%emt 0:00:03]} h5 {[%emt 0:00:17]} 0-1

[Event "12th Asrian Memorial 2019"]
[Site "Yerevan"]
[Date "2019.06.16"]
[Round "6.6"]
[White "Davtyan, Artur"]
[Black "Der Manuelian, Haik"]
[Result "1-0"]
[ECO "D11"]
[WhiteElo "2431"]
[BlackElo "2309"]
[Annotator "NA"]
[PlyCount "153"]
[EventDate "2019.06.11"]
[EventType "swiss"]
[EventCountry "ARM"]
[SourceTitle "playchess.com"]
[Source "ChessBase"]
[SourceQuality "1"]
[TimeControl "40/5400+30:1800+30"]

1. d4 {[%emt 0:00:00]} d5 {[%emt 0:00:00]} 2. c4 {[%emt 0:00:00]} c6 {[%emt 0:00:00]} 3. Nf3 {[%emt 0:00:00]} Nf6 {[%emt 0:00:00]} 4. e3 {[%emt 0:00:00]} Bg4 {[%emt 0:00:00]} 5. h3 {[%emt 0:00:00]} Bxf3 {[%emt 0:00:00]} 6. Qxf3 {[%emt 0:00:00]} e6 {[%emt 0:00:00]} 7. Nc3 {[%emt 0:00:06]} Nbd7 {[%emt 0:00:03]} 8. Bd3 {[%emt 0:00:05]} Bb4 {[%emt 0:01:00]} 9. cxd5 {[%emt 0:01:30] D11: Slav Defence: 3 Nf3 sidelines and 3...Nf6 4 e3 Bg4} (9. O-O O-O 10. Qd1 Re8 11. Bd2 dxc4 12. Bxc4 Qe7 13. a3 Bd6 14. Qc2 Rad8 15. Rfd1 h5 16. b4 h4 {0-1 (35) So,W (2815)-Carlsen,M (2832) chess.com INT 2017}) 9... exd5 {[%emt 0:02:47]} 10. Bd2 {[%emt 0:07:10]} O-O {[%emt 0:02:58]} 11. a3 {[%emt 0:00:09]} Ba5 {[%emt 0:00:56]} 12. b4 {[%emt 0:00:01]} Bc7 {[%emt 0:00:12]} 13. O-O {[%emt 0:00:03] [#]} Nb6 $146 {[%emt 0:08:30]} ({Predecessor:} 13... a6 14. a4 Nb6 15. b5 cxb5 16. axb5 a5 {½-½ (63) Karpov,A (2670)-Kamsky,G (2714) Moscow 2007}) 14. b5 {[%emt 0:02:07]} Qd6 {[%emt 0:00:28]} 15. g3 {[%emt 0:00:25]} Rfe8 {[%emt 0:05:13]} 16. bxc6 {[%emt 0:22:41]} bxc6 {[%emt 0:00:46]} 17. Rfc1 {[%emt 0:14:18]} Qe6 {[%emt 0:24:11]} 18. Qf5 {[%emt 0:06:45]} Qxf5 {[%emt 0:14:12]} 19. Bxf5 {[%emt 0:00:26]} Nc4 {[%emt 0:05:16]} 20. Be1 {[%emt 0:02:21]} Bd6 {[%emt 0:07:58]} 21. Na4 {[%emt 0:11:55]} Rab8 {[%emt 0:03:34]} 22. Bd3 {[%emt 0:05:06]} Bxa3 {[%emt 0:04:10]} 23. Rc2 {[%emt 0:00:55]} Bb4 {[%emt 0:05:43]} 24. Bxc4 {[%emt 0:00:01]} Bxe1 {[%emt 0:01:05]} 25. Rxe1 {[%emt 0:05:44]} Rb4 {[%emt 0:00:55]} 26. Nb2 {[%emt 0:00:38]} Reb8 {[%emt 0:01:36]} 27. Ree2 {[%emt 0:00:05]} dxc4 {[%emt 0:01:00]} 28. Nxc4 $16 {[%emt 0:00:04]} Nd5 {[%emt 0:03:04]} 29. Ne5 {[%emt 0:00:59]} Rb1+ {[%emt 0:00:17]} 30. Kg2 {[%emt 0:00:01]} Nb4 {[%emt 0:00:17]} 31. Rc4 {[%emt 0:11:11]} Rb6 {[%emt 0:00:19]} 32. d5 {[%emt 0:01:45]} Nxd5 {[%emt 0:01:55]} 33. Rd2 {[%emt 0:00:09]} g6 {[%emt 0:04:51]} 34. Nxc6 {[%emt 0:00:56]} Nf6 {[%emt 0:00:37]} 35. g4 {[%emt 0:04:43]} h6 {[%emt 0:02:18]} 36. Nxa7 {[%emt 0:00:56]} R1b4 {[%emt 0:00:22]} 37. Rxb4 {[%emt 0:01:41]} Rxb4 {[%emt 0:00:00]} 38. Nc6 {[%emt 0:00:06]} Rb5 {[%emt 0:00:45]} 39. Nd4 {[%emt 0:03:31]} Ra5 {[%emt 0:00:15]} 40. Ne2 {[%emt 0:00:00]} h5 {[%emt 0:00:00]} 41. f3 {[%emt 0:00:59]} hxg4 {[%emt 0:03:29]} 42. hxg4 {[%emt 0:00:41]} Nd5 {[%emt 0:02:38]} 43. Kf2 {[%emt 0:02:52]} Kg7 {[%emt 0:00:03]} 44. Ng3 {[%emt 0:06:16]} Nc7 {[%emt 0:01:47]} 45. Ne4 {[%emt 0:00:14]} Ne6 {[%emt 0:00:19]} 46. f4 {[%emt 0:01:37]} f5 {[%emt 0:13:58]} 47. Rd7+ {[%emt 0:05:47]} Kf8 {[%emt 0:00:19]} 48. gxf5 {[%emt 0:01:17]} gxf5 {[%emt 0:00:59]} 49. Ng5 {[%emt 0:09:41]} Ng7 {[%emt 0:07:06]} 50. Kg3 {[%emt 0:01:54]} Ra6 {[%emt 0:01:41]} 51. Rf7+ {[%emt 0:00:38]} Kg8 {[%emt 0:00:05]} 52. Re7 {[%emt 0:00:05]} Kf8 {[%emt 0:01:42]} 53. Rc7 {[%emt 0:01:09]} Rh6 {[%emt 0:02:10]} 54. Ra7 {[%emt 0:00:29]} Nh5+ {[%emt 0:00:32]} 55. Kf3 {[%emt 0:00:10]} Ng7 {[%emt 0:00:30]} 56. Ke2 {[%emt 0:00:58]} Rd6 {[%emt 0:01:20]} 57. Rb7 {[%emt 0:00:02]} Ra6 {[%emt 0:00:58]} 58. Rc7 {[%emt 0:02:30]} Ra3 {[%emt 0:00:30]} 59. Rc6 {[%emt 0:00:28]} Ke7 {[%emt 0:00:52]} 60. Rc7+ {[%emt 0:01:35]} Kf6 {[%emt 0:00:43]} 61. Rc6+ {[%emt 0:00:41]} Ke7 {[%emt 0:00:04]} 62. Rg6 {[%emt 0:00:05]} Ne8 {[%emt 0:00:31]} 63. Re6+ {[%emt 0:00:01]} Kd7 {[%emt 0:00:03]} 64. Re5 {[%emt 0:00:32]} Nd6 {[%emt 0:00:34]} 65. Rc5 {[%emt 0:00:38]} Ra8 {[%emt 0:01:27]} 66. Kd3 {[%emt 0:02:34]} Ra4 {[%emt 0:00:34]} 67. Nf3 {[%emt 0:00:28]} Ke6 {[%emt 0:00:23]} 68. Nd4+ {[%emt 0:00:13]} Kf6 {[%emt 0:00:05]} 69. Rd5 {[%emt 0:00:48]} Ra3+ {[%emt 0:00:29]} 70. Ke2 {[%emt 0:00:01]} Ra6 {[%emt 0:00:11]} 71. Kf3 {[%emt 0:00:06]} Kg6 {[%emt 0:00:54]} 72. Re5 {[%emt 0:00:01]} Rb6 {[%emt 0:00:30]} 73. Re6+ {[%emt 0:00:11]} Kf7 {[%emt 0:00:12]} 74. Rh6 {[%emt 0:00:05]} Nc4 {[%emt 0:01:00]} 75. Rxb6 {[%emt 0:00:01]} Nxb6 {[%emt 0:00:02]} 76. Nxf5 {[%emt 0:00:05]} Kf6 77. Ke4 1-0

[Event "12th Asrian Memorial 2019"]
[Site "Yerevan"]
[Date "2019.06.16"]
[Round "6.8"]
[White "Gholami Orimi, Mahdi"]
[Black "Dilanyan, Grigor"]
[Result "1-0"]
[ECO "A62"]
[WhiteElo "2445"]
[BlackElo "2294"]
[Annotator "NA"]
[PlyCount "89"]
[EventDate "2019.06.11"]
[EventType "swiss"]
[EventCountry "ARM"]
[SourceTitle "playchess.com"]
[Source "ChessBase"]
[SourceQuality "1"]
[TimeControl "40/5400+30:1800+30"]

1. d4 {[%emt 0:00:00]} Nf6 {[%emt 0:00:41]} 2. c4 {[%emt 0:00:00]} e6 {[%emt 0:00:20]} 3. Nf3 {[%emt 0:00:00]} c5 {[%emt 0:00:29]} 4. d5 {[%emt 0:00:28]} d6 {[%emt 0:00:53]} 5. Nc3 {[%emt 0:00:26]} g6 {[%emt 0:03:08]} 6. g3 {[%emt 0:01:41]} exd5 {[%emt 0:03:51]} 7. cxd5 {[%emt 0:00:02]} Bg7 {[%emt 0:00:06]} 8. Bg2 {[%emt 0:00:08]} O-O {[%emt 0:01:00]} 9. O-O {[%emt 0:00:02]} a6 {[%emt 0:02:06]} 10. a4 {[%emt 0:00:06]} Nbd7 {[%emt 0:00:18]} 11. Nd2 {[%emt 0:01:40]} Ne8 {[%emt 0:13:22]} 12. h3 {[%emt 0:03:56]} f5 {[%emt 0:01:33]} 13. e4 $11 {[%emt 0:09:56]} Ne5 {[%emt 0:17:45]} 14. Qc2 {[%emt 0:15:09]} f4 {[%emt 0:02:53]} 15. gxf4 {[%emt 0:00:51]} Rxf4 {[%emt 0:00:15]} 16. Ne2 {[%emt 0:00:07]} Rh4 {[%emt 0:02:02]} 17. Ra3 {[%emt 0:03:18]} g5 {[%emt 0:11:41]} 18. f4 {[%emt 0:13:20]} gxf4 {[%emt 0:05:00]} 19. Nxf4 {[%emt 0:00:29]} Qe7 {[%emt 0:05:01]} 20. Qd1 {[%emt 0:08:42]} Nf6 {[%emt 0:01:18]} 21. Nf3 {[%emt 0:08:41]} Nxf3+ {[%emt 0:00:50]} 22. Qxf3 {[%emt 0:03:58]} Bd7 {[%emt 0:00:13]} 23. Ne6 {[%emt 0:09:09]} Nxe4 {[%emt 0:23:21]} 24. Re3 {[%emt 0:01:20]} Bxe6 {[%emt 0:01:41]} 25. Rxe4 {[%emt 0:00:52]} Bd4+ {[%emt 0:02:02]} 26. Kh1 {[%emt 0:05:06]} Bxh3 {[%emt 0:00:31]} 27. Rxh4 {[%emt 0:00:25]} Qxh4 {[%emt 0:00:09]} 28. Qxh3 {[%emt 0:02:34]} Qxh3+ {[%emt 0:00:10]} 29. Bxh3 {[%emt 0:00:01]} b5 {[%emt 0:00:01]} 30. a5 {[%emt 0:00:01]} Kg7 {[%emt 0:00:12]} 31. Be6 {[%emt 0:00:35]} Kg6 {[%emt 0:02:00]} 32. Rf7 {[%emt 0:02:16]} c4 {[%emt 0:00:13]} 33. Kg2 {[%emt 0:03:27]} Rb8 {[%emt 0:00:39]} 34. Rc7 {[%emt 0:03:13]} Rf8 {[%emt 0:00:12]} 35. Rc6 {[%emt 0:00:08]} Rf2+ {[%emt 0:00:19]} 36. Kg3 {[%emt 0:00:05]} Rc2 {[%emt 0:00:52]} 37. Bf4 {[%emt 0:00:03]} Rxb2 {[%emt 0:00:47]} 38. Bxd6 {[%emt 0:00:10]} c3 {[%emt 0:00:26]} 39. Bf4 {[%emt 0:00:59]} c2 {[%emt 0:00:24]} 40. d6 {[%emt 0:00:00]} Bf2+ {[%emt 0:00:00]} 41. Kf3 {[%emt 0:00:20]} Bh4 {[%emt 0:06:42]} 42. d7 {[%emt 0:00:07]} c1=Q {[%emt 0:01:50]} 43. Bxc1 {[%emt 0:01:47]} Rf2+ {[%emt 0:00:15]} 44. Kg4 {[%emt 0:00:39]} Be7 {[%emt 0:02:38]} 45. Bd5+ {[%emt 0:00:38]} 1-0

[Event "12th Asrian Memorial 2019"]
[Site "Yerevan"]
[Date "2019.06.16"]
[Round "6.13"]
[White "Shmavonyan, Areg"]
[Black "Kulaots, Kaido"]
[Result "0-1"]
[ECO "A48"]
[WhiteElo "2180"]
[BlackElo "2574"]
[Annotator "ChessBase"]
[PlyCount "76"]
[EventDate "2019.06.11"]
[EventType "swiss"]
[EventCountry "ARM"]
[SourceTitle "playchess.com"]
[Source "ChessBase"]
[SourceQuality "1"]
[TimeControl "40/5400+30:1800+30"]

1. d4 {[%emt 0:00:00]} Nf6 {[%emt 0:00:00]} 2. Nf3 {[%emt 0:00:00]} g6 {[%emt 0:01:19]} 3. Bf4 {[%emt 0:00:00]} Bg7 {[%emt 0:00:15]} 4. e3 {[%emt 0:00:00]} d6 {[%emt 0:01:48]} 5. h3 {[%emt 0:00:00]} O-O {[%emt 0:01:01]} 6. Be2 {[%emt 0:00:04]} c5 {[%emt 0:01:58]} 7. c3 {[%emt 0:00:06]} b6 {[%emt 0:05:52]} 8. O-O {[%emt 0:00:18]} Bb7 {[%emt 0:00:33]} 9. Nbd2 {[%emt 0:00:17]} Nbd7 {[%emt 0:00:52]} 10. Bh2 {[%emt 0:00:18]} Ne4 {[%emt 0:09:38]} 11. a4 {[%emt 0:07:26]} a6 {[%emt 0:02:05]} 12. Bd3 {[%emt 0:02:47]} Nxd2 {[%emt 0:00:30]} 13. Nxd2 {[%emt 0:00:46]} Qc7 {[%emt 0:06:13]} 14. Qe2 {[%emt 0:13:29]} Rfc8 {[%emt 0:09:57]} 15. f4 {[%emt 0:11:27]} f5 {[%emt 0:05:24]} 16. g4 {[%emt 0:19:16]} e6 {[%emt 0:02:02]} 17. Bg3 {[%emt 0:02:37]} Nf6 {[%emt 0:03:13]} 18. Kh2 {[%emt 0:04:16]} Re8 {[%emt 0:00:39]} 19. Rg1 {[%emt 0:03:39]} Kh8 {[%emt 0:00:39]} 20. Raf1 {[%emt 0:02:05]} Bc6 {[%emt 0:09:32]} 21. Bc2 {[%emt 0:19:44]} cxd4 {[%emt 0:08:56]} 22. exd4 {[%emt 0:02:01]} b5 {[%emt 0:00:15]} 23. axb5 {[%emt 0:01:18]} axb5 {[%emt 0:00:28]} 24. Bb1 {[%emt 0:02:48]} Rab8 {[%emt 0:01:26]} 25. Re1 {[%emt 0:01:04]} Qa7 {[%emt 0:11:58]} 26. Bf2 {[%emt 0:01:01]} Nd5 {[%emt 0:00:32]} 27. Bg3 {[%emt 0:00:52]} b4 {[%emt 0:02:31]} 28. c4 {[%emt 0:00:40]} Nc3 {[%emt 0:01:42]} 29. bxc3 {[%emt 0:02:09]} bxc3 {[%emt 0:00:04]} 30. Nf1 {[%emt 0:02:24]} Rb2 {[%emt 0:01:37]} 31. Bc2 {[%emt 0:00:05]} Bxd4 {[%emt 0:03:16]} 32. Rg2 {[%emt 0:00:21]} Reb8 {[%emt 0:02:36]} 33. Rc1 {[%emt 0:01:18]} Be4 {[%emt 0:01:09]} 34. Rf2 {[%emt 0:00:36]} Bxc2 {[%emt 0:00:29]} 35. Rxc2 {[%emt 0:00:39]} Rxc2 {[%emt 0:00:05]} 36. Qxc2 {[%emt 0:00:23]} Rb2 {[%emt 0:00:09]} 37. Qd3 {[%emt 0:00:51]} Bxf2 {[%emt 0:00:16]} 38. Kh1 {[%emt 0:01:18] Qb} Qb7+ {[%emt 0:00:09]} 0-1

[Event "12th Asrian Memorial 2019"]
[Site "Yerevan"]
[Date "2019.06.17"]
[Round "7.1"]
[White "Sargsyan, Shant"]
[Black "Onischuk, Vladimir"]
[Result "*"]
[ECO "E70"]
[WhiteElo "2512"]
[BlackElo "2630"]
[Annotator "RC"]
[PlyCount "63"]
[EventDate "2019.06.11"]
[EventType "swiss"]
[EventCountry "ARM"]
[SourceTitle "playchess.com"]
[Source "ChessBase"]
[SourceQuality "1"]
[TimeControl "40/5400+30:1800+30"]

1. d4 {[%emt 0:00:44]} Nf6 {[%emt 0:00:00]} 2. c4 {[%emt 0:00:54]} g6 {[%emt 0:00:00]} 3. Nc3 {[%emt 0:00:53]} Bg7 {[%emt 0:00:00]} 4. e4 {[%emt 0:00:56]} O-O {[%emt 0:00:05]} 5. Nf3 {[%emt 0:02:36]} d6 {[%emt 0:00:48]} 6. h3 {[%emt 0:00:23]} Nfd7 {[%emt 0:04:04]} 7. Bg5 {[%emt 0:04:27]} h6 {[%emt 0:07:11]} 8. Be3 {[%emt 0:01:06]} e5 {[%emt 0:00:51]} 9. Be2 {[%emt 0:04:36]} c5 {[%emt 0:14:25]} 10. dxc5 {[%emt 0:07:38]} dxc5 {[%emt 0:00:12]} 11. Qd5 {[%emt 0:02:29]} Qe7 {[%emt 0:15:19]} 12. Qd2 {[%emt 0:06:54]} Kh7 {[%emt 0:00:24]} 13. Nd5 {[%emt 0:02:10]} Qd6 {[%emt 0:11:50]} 14. g4 {[%emt 0:05:37]} Rd8 {[%emt 0:01:41]} 15. g5 {[%emt 0:18:36]} h5 {[%emt 0:03:16]} 16. Nh4 {[%emt 0:01:06]} Nc6 {[%emt 0:07:54]} 17. Bxh5 {[%emt 0:01:09]} Nd4 {[%emt 0:05:43]} 18. Bg4 {[%emt 0:10:47]} b5 {[%emt 0:01:37]} 19. O-O {[%emt 0:05:22]} Nb6 {[%emt 0:02:39]} 20. f4 {[%emt 0:14:36]} Nxc4 {[%emt 0:01:25]} 21. Qf2 {[%emt 0:00:39]} Nxe3 {[%emt 0:16:33]} 22. Qxe3 {[%emt 0:00:01]} Bxg4 {[%emt 0:02:00]} 23. hxg4 {[%emt 0:00:41]} exf4 {[%emt 0:01:21]} 24. Rxf4 {[%emt 0:01:33]} Re8 {[%emt 0:01:33]} 25. Nf6+ {[%emt 0:01:38]} Bxf6 {[%emt 0:00:16]} 26. Rxf6 {[%emt 0:00:06]} Qd7 {[%emt 0:00:58]} 27. Qh3 {[%emt 0:01:24]} Ne2+ {[%emt 0:00:40]} 28. Kh1 {[%emt 0:01:47]} Kg7 {[%emt 0:00:23]} 29. Nf5+ {[%emt 0:01:15]} gxf5 {[%emt 0:00:15]} 30. Qh6+ {[%emt 0:00:04]} Kg8 {[%emt 0:00:07]} 31. g6 {[%emt 0:00:10]} Ng3+ {[%emt 0:00:35]} 32. Kg2 {[%emt 0:00:15]} *

[Event "12th Asrian Memorial 2019"]
[Site "Yerevan"]
[Date "2019.06.17"]
[Round "7.9"]
[White "Babujian, Levon"]
[Black "Ghukasyan, Siranush"]
[Result "1-0"]
[ECO "D18"]
[WhiteElo "2485"]
[BlackElo "2255"]
[Annotator "RC"]
[PlyCount "75"]
[EventDate "2019.06.11"]
[EventType "swiss"]
[EventCountry "ARM"]
[SourceTitle "playchess.com"]
[Source "ChessBase"]
[SourceQuality "1"]
[TimeControl "40/5400+30:1800+30"]

1. d4 {[%emt 0:00:00]} d5 {[%emt 0:00:00]} 2. c4 {[%emt 0:00:00]} c6 {[%emt 0:00:00]} 3. Nc3 {[%emt 0:00:02]} Nf6 {[%emt 0:00:00]} 4. Nf3 {[%emt 0:00:08]} dxc4 {[%emt 0:00:00]} 5. a4 {[%emt 0:00:06]} Bf5 {[%emt 0:00:00]} 6. e3 {[%emt 0:00:12]} e6 {[%emt 0:00:20]} 7. Bxc4 {[%emt 0:00:06]} Bb4 {[%emt 0:00:06]} 8. O-O {[%emt 0:00:06]} Nbd7 {[%emt 0:00:07]} 9. Nh4 {[%emt 0:00:14]} O-O {[%emt 0:00:23]} 10. Nxf5 {[%emt 0:00:06]} exf5 {[%emt 0:00:06]} 11. Qc2 {[%emt 0:00:04]} g6 {[%emt 0:00:04]} 12. f3 {[%emt 0:00:12]} Qb6 {[%emt 0:16:03]} 13. Bd2 {[%emt 0:03:08]} a5 {[%emt 0:01:37]} 14. Kh1 {[%emt 0:02:11]} Rad8 {[%emt 0:03:05]} 15. Rad1 {[%emt 0:00:22]} f4 {[%emt 0:16:51]} 16. Ba2 {[%emt 0:05:46]} Rfe8 {[%emt 0:04:16]} 17. exf4 {[%emt 0:02:25]} Nf8 {[%emt 0:02:19]} 18. f5 {[%emt 0:09:19]} Rxd4 {[%emt 0:02:36]} 19. Bg5 {[%emt 0:00:45]} Rxd1 {[%emt 0:02:07]} 20. Rxd1 {[%emt 0:01:32]} Be7 {[%emt 0:06:49]} 21. Re1 {[%emt 0:01:48]} Bd8 {[%emt 0:02:45]} 22. Rd1 {[%emt 0:07:22]} Ng4 {[%emt 0:20:14]} 23. fxg4 {[%emt 0:00:29]} Bxg5 {[%emt 0:00:05]} 24. Rf1 {[%emt 0:00:31]} Re7 {[%emt 0:03:28]} 25. Ne4 {[%emt 0:01:08]} Qe3 {[%emt 0:00:56]} 26. Nd6 {[%emt 0:01:06]} Kg7 {[%emt 0:07:45]} 27. Qc4 {[%emt 0:03:42]} b5 {[%emt 0:05:08]} 28. axb5 {[%emt 0:02:05]} cxb5 {[%emt 0:00:04]} 29. Qxb5 {[%emt 0:00:11]} Qe2 {[%emt 0:01:25]} 30. Bc4 {[%emt 0:01:51]} Qxg4 {[%emt 0:00:24]} 31. Qd5 {[%emt 0:02:16]} Nd7 {[%emt 0:01:47]} 32. fxg6 {[%emt 0:00:18]} hxg6 {[%emt 0:00:32]} 33. Nxf7 {[%emt 0:04:53]} Bf6 {[%emt 0:02:33]} 34. Nd6 {[%emt 0:00:18]} Ne5 {[%emt 0:01:40]} 35. Qg8+ {[%emt 0:00:28]} Kh6 {[%emt 0:00:04]} 36. Qf8+ {[%emt 0:00:52]} Rg7 {[%emt 0:00:59]} 37. Qxf6 {[%emt 0:00:09]} Nxc4 {[%emt 0:00:40]} 38. Nf5+ {[%emt 0:00:12]} 1-0

[Event "12th Asrian Memorial 2019"]
[Site "Yerevan"]
[Date "2019.06.17"]
[Round "7.10"]
[White "Kotanjian, Tigran"]
[Black "Yeritsyan, Hayk"]
[Result "1-0"]
[ECO "D37"]
[WhiteElo "2462"]
[BlackElo "2208"]
[Annotator "RC"]
[PlyCount "79"]
[EventDate "2019.06.11"]
[EventType "swiss"]
[EventCountry "ARM"]
[SourceTitle "playchess.com"]
[Source "ChessBase"]
[SourceQuality "1"]
[TimeControl "40/5400+30:1800+30"]

1. d4 {[%emt 0:00:00]} d5 {[%emt 0:00:04]} 2. c4 {[%emt 0:00:00]} e6 {[%emt 0:00:14]} 3. Nc3 {[%emt 0:00:00]} Be7 {[%emt 0:00:06]} 4. Nf3 {[%emt 0:00:01]} Nf6 {[%emt 0:00:23]} 5. Bf4 {[%emt 0:00:39]} c5 {[%emt 0:00:16]} 6. dxc5 {[%emt 0:01:21]} Bxc5 {[%emt 0:00:17]} 7. e3 {[%emt 0:02:12]} Nc6 {[%emt 0:01:43]} 8. a3 {[%emt 0:00:20]} O-O {[%emt 0:00:10]} 9. Qc2 {[%emt 0:02:28]} Qa5 {[%emt 0:00:45]} 10. Nd2 {[%emt 0:00:51]} Be7 {[%emt 0:01:33]} 11. Bg3 {[%emt 0:05:01]} Qb6 {[%emt 0:00:56]} 12. Nb3 {[%emt 0:02:48]} d4 {[%emt 0:16:10]} 13. exd4 {[%emt 0:02:35]} Nxd4 {[%emt 0:00:05]} 14. Nxd4 {[%emt 0:00:09]} Qxd4 {[%emt 0:00:04]} 15. Rd1 {[%emt 0:01:07]} Qb6 {[%emt 0:00:28]} 16. Bd3 {[%emt 0:00:19]} Qc6 {[%emt 0:06:11]} 17. Ne4 {[%emt 0:01:31]} Nh5 {[%emt 0:03:58]} 18. Be5 {[%emt 0:16:39]} f5 {[%emt 0:14:45]} 19. O-O {[%emt 0:00:16]} b6 {[%emt 0:03:37]} 20. b4 {[%emt 0:01:01]} Bb7 {[%emt 0:04:03]} 21. b5 {[%emt 0:00:24]} Qc8 {[%emt 0:02:10]} 22. Nd6 {[%emt 0:00:27]} Qc5 {[%emt 0:02:36]} 23. Nxb7 {[%emt 0:00:12]} Qxe5 {[%emt 0:00:08]} 24. c5 {[%emt 0:00:09]} Nf4 {[%emt 0:05:48]} 25. c6 {[%emt 0:04:01]} Rf6 {[%emt 0:05:55]} 26. Rfe1 {[%emt 0:01:11]} Qb8 {[%emt 0:06:59]} 27. Bc4 {[%emt 0:00:45]} Qf8 {[%emt 0:07:03]} 28. g3 {[%emt 0:00:16]} Nh3+ {[%emt 0:00:18]} 29. Kg2 {[%emt 0:01:07]} Ng5 {[%emt 0:00:23]} 30. f4 {[%emt 0:03:22]} Ne4 {[%emt 0:00:17]} 31. Qb3 {[%emt 0:01:57]} Qf7 {[%emt 0:02:45]} 32. Rd7 {[%emt 0:01:17]} Rh6 {[%emt 0:00:03]} 33. h4 {[%emt 0:04:41]} Kf8 {[%emt 0:04:54]} 34. c7 {[%emt 0:01:15]} Qe8 {[%emt 0:05:48]} 35. Red1 {[%emt 0:00:25]} Nc5 {[%emt 0:00:10]} 36. Nxc5 {[%emt 0:00:45]} bxc5 {[%emt 0:00:03]} 37. Bxe6 {[%emt 0:01:17]} Rc8 {[%emt 0:00:10]} 38. Qd5 {[%emt 0:00:46]} Rxe6 {[%emt 0:00:41]} 39. Qxe6 {[%emt 0:00:13]} Bf6 {[%emt 0:00:02]} 40. Rf7+ {[%emt 0:00:00]} 1-0